[Event "British Championship 2024"]
[Site "Hull"]
[Date "2024.07.31"]
[Round "1.6"]
[White "Ghasi, Ameet K"]
[Black "Southcott-Moyers, Indy"]
[Result "1-0"]
[Annotator "TA"]
[ECO "E04"]
[WhiteElo "2496"]
[BlackElo "2182"]
[PlyCount "81"]
[EventDate "2024.07.31"]
[EventCountry "GBR"]
[SourceTitle "playchess.com"]
[Source "ChessBase"]
[SourceQuality "1"]
[TimeControl "40/5400+30:1800+30"]

{[%evp 16,81,0,0,17,10,15,16,22,8,11,-16,-10,-19,-13,-19,-7,-17,0,0,0,0,0,0,-5,-30,-31,-35,-33,-20,0,-250,-258,-326,-313,-304,-304,-271,-114,-350,-325,-333,-222,-219,-172,-197,-162,-143,-140,-135,-93,-77,-80,-100,0,0,0,-79,0,-236,260,253,604,621,642,636,29984,29985]} 1. Nf3 {[%emt 0:01:58]} d5 {[%emt 0:00:06]} 2. g3 {[%emt 0:00:27]} c5 {[%emt 0:00:38]} 3. Bg2 {[%emt 0:00:18]} Nc6 {[%emt 0:00:31]} 4. d4 {[%emt 0:00:48]} e6 {[%emt 0:01:14]} 5. O-O {[%emt 0:00:47]} Nf6 {[%emt 0:00:14]} 6. c4 {[%emt 0:00:19]} dxc4 {[%emt 0:00:06]} 7. Ne5 {[%emt 0:00:08][%cal Bf3e5,Be5c4,Bc4d6][%mdl 32]} Bd7 {[%emt 0:05:20]} 8. Nxc4 {[%emt 0:00:26]} cxd4 {[%emt 0:03:13]} 9. Bf4 {[%emt 0:00:38]} Be7 {[%emt 0:00:11]} 10. Nd6+ {[%emt 0:02:22]} Kf8 {[%emt 0:00:25] aiming for ...e5.} 11. Nxb7 {[%emt 0:00:40]} Qb6 {[%emt 0:00:41][%csl LRb2,LRb7] The position is equal.} 12. Nd6 {[%emt 0:00:44]} Qc5 {[%emt 0:02:33]} 13. b4 {[%emt 0:28:12]} Qxb4 {[%emt 0:09:17]} 14. a3 {[%emt 0:01:39]} Qc5 {[%emt 0:21:47]} 15. Nd2 {[%emt 0:00:59]} e5 $1 {[%emt 0:05:25][%cal Oe5f4]} (15... Bxd6 16. Rc1 (16. Nb3 Qb6 $14) 16... Qb5 (16... Qxa3 $2 17. Nc4 $18) 17. Bxd6+ Ke8 18. a4 $18) 16. N2e4 {[%emt 0:01:16]} Nxe4 {[%emt 0:04:28]} 17. Nxe4 {[%emt 0:00:09]} Qb6 {[%emt 0:02:03]} 18. Rb1 {[%emt 0:12:35]} Qc7 {[%emt 0:06:58]} 19. Bd2 {[%emt 0:00:47]} f5 {[%emt 0:03:32]} 20. e3 {[%emt 0:10:14]} fxe4 {[%emt 0:07:51]} 21. Bxe4 {[%emt 0:00:25]} Rc8 {[%emt 0:02:34] Threatens to win with ...g6.} (21... Bxa3 $2 22. exd4 Nxd4 23. Bxa8 $18) 22. Qf3+ $1 {[%emt 0:11:42]} Ke8 {[%emt 0:03:04] White must now prevent ...g6.} (22... Bf6 $5) 23. Rfc1 $2 {[%emt 0:07:06]} (23. Qh5+ $11 Kd8 (23... g6 24. Bxg6+ Kd8 25. Rfe1 $15) 24. exd4) 23... g6 {[%emt 0:05:33]} (23... Bxa3 24. Qh5+ g6 25. Bxg6+ Kd8 (25... hxg6 26. Qxh8+ Kf7 27. Qh7+ Kf6 28. exd4 $11) 26. Rc4 $17) 24. Rc4 {[%emt 0:08:31]} Rf8 {[%emt 0:03:10]} (24... Bxa3 25. exd4 (25. Qf6 $2 Rf8 $19) 25... Qd6 26. dxe5 Nxe5 (26... Qxd2 $2 27. e6 $18) 27. Rxc8+ Bxc8 28. Qc3 $11) 25. Qg2 {[%emt 0:04:47]} Rf6 {[%emt 0:01:56]} 26. exd4 {[%emt 0:01:33] [#]} exd4 {[%emt 0:01:00]} (26... Qd8 $1 $19 27. dxe5 Nxe5 28. Rxc8 Qxc8) 27. Bf4 $2 {[%emt 0:03:47]} (27. Bd5 $17) 27... Qa5 $19 {[%emt 0:04:06] ...g5 would now be deadly.} 28. h4 {[%emt 0:00:34]} Qa6 {[%emt 0:00:48]} (28... Qxa3 29. h5 $19) 29. Bd5 {[%emt 0:00:25]} Kd8 {[%emt 0:04:39]} (29... Qxa3 30. Rbc1 $17) 30. Re1 {[%emt 0:00:36]} Qa5 {[%emt 0:00:57]} (30... Bxa3 31. Bg5 Ne7 32. Rxd4 $11) (30... Rxf4 31. gxf4 Bf6 (31... Bxa3 32. Qe4 $17) 32. Qe4 $17) 31. Rd1 {[%emt 0:00:10]} Qb5 {[%emt 0:00:54][%cal Od7e6]} (31... Bxa3 $2 32. Bg5 Be7 33. Bxf6 Bxf6 34. Bxc6 $18) 32. a4 {[%emt 0:00:23]} Qa6 {[%emt 0:00:10][%cal Of6f4] ...Rxf4! is the strong threat.} 33. Qe4 {[%emt 0:00:38]} Bf5 {[%emt 0:00:48]} 34. Qf3 {[%emt 0:00:26]} Bd7 {[%emt 0:00:17]} 35. Qe4 $1 {[%emt 0:00:36] Some like it hot} (35. Qb3 $2 Rxf4 36. gxf4 Bf6 $19 (36... Bxh4 $2 37. Bxc6 Bxc6 38. Rcxd4+ Kc7 39. f5 $18)) 35... Bf5 {[%emt 0:00:05]} 36. Qf3 {[%emt 0:00:48]} Bd7 {[%emt 0:00:12]} (36... h6 $17) 37. Qe2 $2 {[%emt 0:00:29]} ({Don't go for} 37. Qb3 $2 Rxf4 38. gxf4 Qb6 $19 (38... Bxh4 $2 39. Bxc6 Bxc6 40. Rcxd4+ Kc7 41. f5 $18)) (37. Qe4 $1 $11 {and White is okay.}) 37... Qa5 $4 {[%emt 0:01:38][%mdl 8192] [#]} (37... Nb4 $19 {avoids the disaster.} 38. Rxc8+ Qxc8) 38. Bxc6 $18 {[%emt 0:00:35]} Rfxc6 $2 {[%emt 0:00:32]} ({Don't play} 38... Rcxc6 39. Rcxd4 (39. Rdxd4 $2 {too greedy.} Rxc4 40. Rxc4 Qd5 $19) 39... Ke8 40. Rxd7 $18) (38... Bxc6 39. Bg5 Rf7) 39. Rcxd4 {[%emt 0:00:06]} R8c7 {[%emt 0:00:30]} 40. Bxc7+ {[%emt 0:00:18]} Rxc7 {[%emt 0:00:02]} 41. Qe6 {[%emt 0:30:42] White used his chance.   Weighted Error Value: White=0.28 (precise) /Black=0.59.  Loses game:     	White=3     	---        Missed win:     	---       	Black=1      Mistake:       	---       	Black=3      Inaccurate:     	White=1     	Black=2      OK:         	White=13    	Black=13     Best:        	White=4     	Black=2      Strong:       	White=2     	Black=1} 1-0

[Event "British Championship 2024"]
[Site "Hull"]
[Date "2024.07.31"]
[Round "1.7"]
[White "Beaumont, Chris R"]
[Black "Bazakutsa, Svyatoslav"]
[Result "0-1"]
[Annotator "TA"]
[ECO "E63"]
[WhiteElo "2198"]
[BlackElo "2470"]
[PlyCount "80"]
[EventDate "2024.07.31"]
[EventCountry "GBR"]
[SourceTitle "playchess.com"]
[Source "ChessBase"]
[SourceQuality "1"]
[TimeControl "40/5400+30:1800+30"]

{[%evp 19,80,29,17,8,18,11,25,0,19,9,10,0,0,-5,-1,-12,-11,0,0,-4,-12,-21,0,0,0,0,0,0,0,0,0,0,0,0,0,0,0,0,0,0,0,0,0,0,0,-143,-27,-20,-20,-3,-57,-112,0,-418,-418,-1329,-1322,-1802,-1510,-3789,-3677,-4129,-4088]} 1. Nf3 {[%emt 0:00:06]} Nf6 {[%emt 0:00:21]} 2. c4 {[%emt 0:00:09]} g6 {[%emt 0:00:05]} 3. g3 {[%emt 0:00:26]} Bg7 {[%emt 0:00:08]} 4. Bg2 {[%emt 0:00:17]} O-O {[%emt 0:00:14]} 5. d4 {[%emt 0:00:15]} d6 {[%emt 0:00:08]} 6. Nc3 {[%emt 0:00:39]} Nc6 {[%emt 0:00:09]} 7. d5 {[%emt 0:00:07]} Na5 {[%emt 0:00:06]} 8. b3 {[%emt 0:00:06]} c5 {[%emt 0:00:11]} 9. Bb2 {[%emt 0:02:22]} a6 {[%emt 0:00:38]} 10. O-O {[%emt 0:00:22]} Rb8 {[%emt 0:00:47]} 11. Nd2 {[%emt 0:00:13]} b5 {[%emt 0:00:17]} 12. Qc1 {[%emt 0:00:36]} Re8 {[%emt 0:00:27]} 13. Rb1 {[%emt 0:18:42] White has an edge.} e5 {[%emt 0:06:05]} 14. dxe6 {[%emt 0:00:16]} Bxe6 {[%emt 0:00:12]} 15. cxb5 {[%emt 0:00:10]} axb5 {[%emt 0:00:42]} 16. Nce4 {[%emt 0:01:04]} Bf5 {[%emt 0:30:12][%cal Rf6e4]} 17. Nxf6+ {[%emt 0:29:16]} Bxf6 {[%emt 0:00:18]} 18. e4 {[%emt 0:00:18]} Bd7 {[%emt 0:01:45]} 19. Bxf6 {[%emt 0:00:57]} Qxf6 {[%emt 0:00:13]} 20. b4 {[%emt 0:00:12]} cxb4 {[%emt 0:28:57]} 21. Qc7 {[%emt 0:02:21]} Qd8 {[%emt 0:06:45]} 22. Qxd6 {[%emt 0:05:43]} Be6 {[%emt 0:00:13]} 23. Qxb4 {[%emt 0:01:21]} Bxa2 {[%emt 0:01:15]} 24. Rbd1 {[%emt 0:11:07][%cal Oe4e5]} Nc6 {[%emt 0:00:24]} 25. Qb2 {[%emt 0:01:22][%cal Od2b3] Nb3! would now be deadly.} Be6 {[%emt 0:05:08]} 26. Nc4 {[%emt 0:01:06]} bxc4 {[%emt 0:07:17]} 27. Rxd8 {[%emt 0:00:10]} Rexd8 {[%emt 0:00:03]} 28. Qf6 {[%emt 0:07:54]} Nd4 {[%emt 0:00:49] White must now prevent ...c3.} 29. h4 {[%emt 0:17:23][%cal Bh2h4,Bh4h5,Bh5h6][%mdl 32]} c3 $36 {[%emt 0:11:11][%mdl 2048] And now ...c2 would win. Black has the initiative.} 30. h5 {[%emt 0:00:00]} c2 {[%emt 0:00:00]} 31. h6 {[%emt 0:00:00][%csl Gh6][%cal Rf6g7]} Kf8 {[%emt 0:00:00] Hoping for ...Ke8. Active counter play!} 32. e5 {[%emt 0:00:00] [#]} (32. Qh8+ $2 Ke7 33. Qg7 Rb1 $19) (32. Kh2 $11 {keeps the balance.}) 32... Rdc8 {[%emt 0:00:00]} (32... Ke8 $1 $17 33. Be4 (33. Qh8+ $2 Kd7 $19) 33... Rbc8 34. Bxc2 Rxc2 35. Qh8+ Ke7 36. Qf6+ Kd7) 33. Be4 $1 $11 {[%emt 0:00:43]} (33. Qh8+ Ke7 34. Qf6+ Ke8 $19 (34... Kd7 $2 35. Bh3 $19)) 33... c1=Q {[%emt 0:00:00] Dancing on a razor blade.} 34. Rxc1 {[%emt 0:00:13]} Rxc1+ {[%emt 0:00:00]} 35. Kg2 {[%emt 0:00:08] [#]} (35. Kh2 $1 $15 Rbc8 36. Bxg6) 35... Rcc8 {[%emt 0:00:00]} ({Black should play} 35... Rbc8 $1 $17 {Strongly threatening ...Ke8.} 36. Bb7 Ke8 (36... Re8 37. g4 $15) 37. Bxc8 Rxc8) 36. Qg7+ $2 {[%emt 0:00:42][%mdl 8192]} (36. Bxg6 $1 $11 {and White is okay.} Bd5+ (36... hxg6 $2 {too greedy.} 37. h7 $18) 37. Kh3) 36... Ke7 $19 {[%emt 0:00:00]} 37. Qxh7 {[%emt 0:00:11]} (37. Qf6+ $142 Kd7 38. Qf4) 37... Rg8 {[%emt 0:00:28] Black is clearly winning.} 38. Kf1 {[%emt 0:02:33]} Bc4+ {[%emt 0:00:12]} 39. Kg2 {[%emt 0:00:00]} Ne6 {[%emt 0:00:21]} 40. f4 {[%emt 0:00:00]} Rh8 {[%emt 0:00:21] Weighted Error Value: White=0.94/Black=0.13 (very precise) .  Loses game:     	White=1     	---        Mistake:       	White=3     	Black=2      Inaccurate:     	White=1     	---        OK:         	White=15    	Black=11     Best:        	White=1     	Black=3      Strong:       	White=1     	---} 0-1

[Event "British Championship 2024"]
[Site "Hull"]
[Date "2024.07.31"]
[Round "1.8"]
[White "Royal, Shreyas"]
[Black "Sivanandan, Bodhana"]
[Result "1-0"]
[Annotator "TA"]
[ECO "B12"]
[WhiteElo "2483"]
[BlackElo "2110"]
[PlyCount "65"]
[EventDate "2024.07.31"]
[EventCountry "GBR"]
[SourceTitle "playchess.com"]
[Source "ChessBase"]
[SourceQuality "1"]
[TimeControl "40/5400+30:1800+30"]

{[%evp 9,64,2,3,10,16,0,12,0,18,18,18,10,12,15,18,0,39,0,40,0,19,0,0,0,8,1,10,0,32,22,34,28,33,35,56,57,86,85,134,69,181,67,58,0,0,0,884,871,2160,2116,29993,29994,29997,29998,29998,29999,29999]} 1. e4 {[%emt 0:00:02]} c6 {[%emt 0:00:26]} 2. d4 {[%emt 0:00:06]} d5 {[%emt 0:00:21]} 3. e5 {[%emt 0:00:06]} Bf5 {[%emt 0:00:38]} 4. h4 {[%emt 0:00:06]} h5 {[%emt 0:00:34]} 5. Bd3 {[%emt 0:00:05]} Bxd3 {[%emt 0:00:50]} 6. Qxd3 {[%emt 0:00:07][%cal Oe5e6]} Qa5+ {[%emt 0:01:01]} 7. Nd2 {[%emt 0:00:14][%cal Oe5e6] aiming for e6!} e6 {[%emt 0:00:56]} 8. Ngf3 {[%emt 0:01:19] The position is equal.} Nh6 {[%emt 0:00:45]} 9. c3 {[%emt 0:00:25]} Nf5 {[%emt 0:01:14]} 10. O-O {[%emt 0:01:45]} Be7 {[%emt 0:01:34]} 11. g3 {[%emt 0:00:36]} Nd7 {[%emt 0:01:23]} 12. Nb3 {[%emt 0:01:47]} Qb5 {[%emt 0:02:06]} 13. Qd1 {[%emt 0:01:13]} (13. Qxb5 {simplifies} cxb5 14. Bd2 Nb6 15. Na5) 13... c5 {[%emt 0:01:43]} 14. a4 {[%emt 0:01:15]} Qb6 {[%emt 0:00:23]} 15. Kg2 {[%emt 0:05:28]} Rc8 {[%emt 0:03:02]} 16. Re1 {[%emt 0:02:19][%cal Bf1e1,Be1e2,Be2e3,Be3b3][%mdl 32]} g6 {[%emt 0:01:47]} 17. Re2 {[%emt 0:01:06]} a6 {[%emt 0:08:35]} 18. Bf4 {[%emt 0:02:53]} cxd4 {[%emt 0:06:48]} 19. Nbxd4 {[%emt 0:05:24]} ({But not} 19. cxd4 O-O $11) 19... Nxd4 {[%emt 0:03:19]} 20. cxd4 {[%emt 0:02:43]} Nb8 {[%emt 0:01:46]} 21. Re3 {[%emt 0:15:34]} Nc6 {[%emt 0:02:39]} 22. Rb3 {[%emt 0:00:29]} Qa7 {[%emt 0:05:05]} 23. Qd2 {[%emt 0:00:40]} Bd8 {[%emt 0:07:01] [#]} (23... a5 $142) 24. a5 {[%emt 0:03:17] White is more active.} ({White should play} 24. Rc1 $1 $16) 24... O-O {[%emt 0:12:32]} (24... Qb8 $14) 25. Bg5 {[%emt 0:12:31]} (25. Bh6 $18) 25... Bxg5 $14 {[%emt 0:05:31]} 26. Qxg5 {[%emt 0:09:10]} (26. hxg5 $14 Ne7 27. g4 hxg4 28. Nh2) 26... Nxd4 $11 {[%emt 0:07:07]} 27. Qe3 {[%emt 0:00:13]} Nc6 {[%emt 0:03:36][%mdl 8192] [#]} (27... Nxb3 $11 28. Qxa7 Nxa1) 28. Qh6 $1 $18 {[%emt 0:00:25] Ng5 would kill now.} ({Less strong is} 28. Qxa7 Nxa7 29. Rxb7 Nc6 $16) 28... Rfe8 {[%emt 0:08:51]} 29. Ng5 {[%emt 0:00:35][%cal Bf3g5,Bg5h7,Bh7f6,Bf6d7][%mdl 32] White wants to mate with Qh7+.} Nd8 {[%emt 0:00:48]} 30. Nh7 {[%emt 0:02:17][%cal Rh7f6] White mates.} f5 {[%emt 0:03:38]} 31. Nf6+ {[%emt 0:00:03]} Kf7 {[%emt 0:00:15]} 32. Qh7+ {[%emt 0:00:03]} Kf8 {[%emt 0:00:19]} 33. Nd7# {[%emt 0:32:44] Weighted Error Value: White=0.21 (precise) /Black=0.35.  Loses game:     	---       	Black=1      Mistake:       	White=3     	Black=2      Inaccurate:     	White=2     	Black=5      OK:         	White=6     	Black=7      Best:        	---       	Black=2      Strong:       	White=1     	---} 1-0

[Event "British Championship 2024"]
[Site "Hull"]
[Date "2024.07.31"]
[Round "1.9"]
[White "Brewer, Callum D"]
[Black "Grieve, Harry"]
[Result "0-1"]
[Annotator "RC"]
[ECO "B47"]
[WhiteElo "2161"]
[BlackElo "2470"]
[PlyCount "82"]
[EventDate "2024.07.31"]
[EventCountry "GBR"]
[SourceTitle "playchess.com"]
[Source "ChessBase"]
[SourceQuality "1"]
[TimeControl "40/5400+30:1800+30"]

1. e4 {[%emt 0:00:12]} c5 {[%emt 0:00:04]} 2. Nf3 {[%emt 0:00:11]} e6 {[%emt 0:00:04]} 3. d4 {[%emt 0:00:06]} cxd4 {[%emt 0:00:03]} 4. Nxd4 {[%emt 0:00:04]} Nc6 {[%emt 0:01:23]} 5. Nc3 {[%emt 0:00:01]} Qc7 {[%emt 0:00:20]} 6. Ncb5 {[%emt 0:00:12]} Qb8 {[%emt 0:00:21]} 7. Bd3 {[%emt 0:00:07]} Nf6 {[%emt 0:00:19]} 8. O-O {[%emt 0:00:43]} Be7 {[%emt 0:00:05]} 9. c4 {[%emt 0:11:26]} O-O {[%emt 0:01:07]} 10. Nxc6 {[%emt 0:15:52]} dxc6 {[%emt 0:07:28]} 11. Nc3 {[%emt 0:01:05]} e5 {[%emt 0:01:01]} 12. Bg5 {[%emt 0:12:13]} h6 {[%emt 0:02:02]} 13. Bxf6 {[%emt 0:04:22]} Bxf6 {[%emt 0:00:11]} 14. b4 {[%emt 0:00:54]} Rd8 {[%emt 0:08:32]} 15. Qb1 {[%emt 0:03:11]} Be7 {[%emt 0:07:35]} 16. Rd1 {[%emt 0:14:21]} a5 {[%emt 0:04:26]} 17. b5 {[%emt 0:02:22]} Bc5 {[%emt 0:02:33]} 18. Qc2 {[%emt 0:02:44]} Qa7 {[%emt 0:12:44]} 19. h3 {[%emt 0:04:33]} a4 {[%emt 0:05:59]} 20. Bf1 {[%emt 0:09:20]} Bd4 {[%emt 0:05:10]} 21. Rab1 {[%emt 0:00:03]} a3 {[%emt 0:07:50]} 22. Rd2 {[%emt 0:08:21]} Be6 {[%emt 0:02:38]} 23. Rb3 {[%emt 0:02:23]} Qc5 {[%emt 0:03:32]} 24. Nb1 {[%emt 0:00:29]} Bb2 {[%emt 0:02:53]} 25. bxc6 {[%emt 0:02:10]} bxc6 {[%emt 0:01:01]} 26. Rxd8+ {[%emt 0:01:29]} Rxd8 {[%emt 0:00:01]} 27. Rd3 {[%emt 0:00:24]} Ra8 {[%emt 0:04:02]} 28. Nd2 {[%emt 0:01:32]} Bd4 {[%emt 0:03:14]} 29. Rf3 {[%emt 0:00:46]} Qb4 {[%emt 0:02:49]} 30. Rb3 {[%emt 0:01:44]} Qe7 {[%emt 0:03:51]} 31. Nf3 {[%emt 0:01:16]} Bb2 {[%emt 0:02:22]} 32. Nd2 {[%emt 0:00:37]} h5 {[%emt 0:03:58]} 33. Be2 {[%emt 0:00:44]} h4 {[%emt 0:00:38]} 34. Bf1 {[%emt 0:00:01]} Qg5 {[%emt 0:01:54]} 35. Nf3 {[%emt 0:00:02]} Qf4 {[%emt 0:00:55]} 36. Qd2 {[%emt 0:01:27]} Qxd2 37. Nxd2 {[%emt 0:00:02]} Ra4 {[%emt 0:04:20]} 38. Rb6 {[%emt 0:00:52]} Bd4 {[%emt 0:01:19]} 39. Rxc6 {[%emt 0:00:38]} Rb4 {[%emt 0:00:17]} 40. Ra6 {[%emt 0:01:00]} Rb2 {[%emt 0:00:45]} 41. Nf3 {[%emt 0:07:58]} Bxf2+ {[%emt 0:03:23]} 0-1

[Event "British Championship 2024"]
[Site "Hull"]
[Date "2024.07.31"]
[Round "1.10"]
[White "Gasanov, Eldar"]
[Black "Hryshchenko, Kamila"]
[Result "1-0"]
[Annotator "RC"]
[ECO "E70"]
[WhiteElo "2469"]
[BlackElo "2161"]
[PlyCount "135"]
[EventDate "2024.07.31"]
[EventCountry "GBR"]
[SourceTitle "playchess.com"]
[Source "ChessBase"]
[SourceQuality "1"]
[TimeControl "40/5400+30:1800+30"]

1. d4 {[%emt 0:00:14]} g6 {[%emt 0:00:06]} 2. c4 {[%emt 0:00:39]} Bg7 {[%emt 0:00:07]} 3. e4 {[%emt 0:00:24]} d6 {[%emt 0:00:05]} 4. Nc3 {[%emt 0:00:26]} Nf6 {[%emt 0:00:11]} 5. Bg5 {[%emt 0:02:12]} O-O {[%emt 0:00:38]} 6. Qd2 {[%emt 0:00:31]} c5 {[%emt 0:06:29]} 7. d5 {[%emt 0:00:55]} e6 {[%emt 0:03:58]} 8. Bd3 {[%emt 0:00:35]} a6 {[%emt 0:03:31]} 9. Nge2 {[%emt 0:05:12]} Nbd7 {[%emt 0:02:36]} 10. f4 {[%emt 0:09:55]} Qa5 {[%emt 0:06:45]} 11. dxe6 {[%emt 0:09:16]} fxe6 {[%emt 0:00:22]} 12. O-O {[%emt 0:00:09]} Rf7 {[%emt 0:04:51]} 13. Rad1 {[%emt 0:11:40]} Rb8 {[%emt 0:04:32]} 14. Bc2 {[%emt 0:07:42]} Ne8 {[%emt 0:03:33]} 15. a4 {[%emt 0:01:49]} b5 {[%emt 0:13:40]} 16. cxb5 {[%emt 0:04:09]} axb5 {[%emt 0:01:03]} 17. Nxb5 {[%emt 0:02:14]} Qxd2 {[%emt 0:00:54]} 18. Rxd2 {[%emt 0:00:04]} Ba6 {[%emt 0:00:50]} 19. Bb3 {[%emt 0:11:09]} c4 {[%emt 0:18:01]} 20. Bxc4 {[%emt 0:01:36]} Nc5 {[%emt 0:00:39]} 21. Ng3 {[%emt 0:10:11]} h6 {[%emt 0:02:41]} 22. Bh4 {[%emt 0:01:45]} Nxa4 {[%emt 0:00:41]} 23. Nxd6 {[%emt 0:02:06]} Nxd6 {[%emt 0:00:26]} 24. Bxa6 {[%emt 0:00:24]} Rb6 {[%emt 0:00:43]} 25. e5 {[%emt 0:03:37]} Rxa6 {[%emt 0:08:16]} 26. exd6 {[%emt 0:00:47]} Nc5 {[%emt 0:00:29]} 27. Be7 {[%emt 0:02:39]} Bf8 {[%emt 0:01:18]} 28. Rc2 {[%emt 0:03:49]} Nb7 {[%emt 0:01:20]} 29. Bxf8 {[%emt 0:03:08]} Kxf8 {[%emt 0:00:21]} 30. Ne4 {[%emt 0:00:42]} Ra4 {[%emt 0:02:45]} 31. Re1 {[%emt 0:02:56]} Rd4 {[%emt 0:02:50]} 32. Rc8+ {[%emt 0:01:12]} Kg7 {[%emt 0:00:07]} 33. Rc7 {[%emt 0:02:53]} Nxd6 {[%emt 0:00:48]} 34. Nc5 {[%emt 0:00:00]} Rdxf4 {[%emt 0:01:49]} 35. Nxe6+ {[%emt 0:00:00]} Kh7 {[%emt 0:00:11]} 36. Rc6 {[%emt 0:00:05]} Re4 {[%emt 0:00:06]} 37. Rxe4 {[%emt 0:00:15]} Nxe4 {[%emt 0:00:02]} 38. b4 {[%emt 0:00:18]} Rf5 {[%emt 0:01:16]} 39. Rc8 {[%emt 0:00:28]} Rd5 {[%emt 0:03:20]} 40. Rc7+ {[%emt 0:00:40]} Kh8 {[%emt 0:00:25]} 41. Rc8+ {[%emt 0:31:26]} Kh7 {[%emt 0:30:08]} 42. Rd8 {[%emt 0:00:18]} Rf5 {[%emt 0:04:10]} 43. Rd7+ {[%emt 0:00:35]} Kh8 {[%emt 0:02:25]} 44. Nd4 {[%emt 0:00:15]} Rf6 {[%emt 0:00:53]} 45. b5 {[%emt 0:00:00]} Kg8 {[%emt 0:00:00]} 46. g3 {[%emt 0:00:00]} Nc3 {[%emt 0:00:00]} 47. Rc7 {[%emt 0:00:00]} Nd5 {[%emt 0:00:00]} 48. Rc5 {[%emt 0:00:00]} Ne3 {[%emt 0:00:00]} 49. Rc1 {[%emt 0:00:00]} Kf7 {[%emt 0:00:00]} 50. Nc6 {[%emt 0:00:00]} Nd5 {[%emt 0:00:00]} 51. Ne5+ {[%emt 0:00:00]} Ke7 {[%emt 0:00:00]} 52. Re1 {[%emt 0:00:00]} Rb6 {[%emt 0:00:00]} 53. Nc4+ {[%emt 0:00:00]} Re6 {[%emt 0:00:00]} 54. Kf2 {[%emt 0:00:00]} Rxe1 {[%emt 0:00:00]} 55. Kxe1 {[%emt 0:00:00]} Nc7 {[%emt 0:00:00]} 56. b6 {[%emt 0:00:00]} Na6 {[%emt 0:00:00]} 57. Ke2 {[%emt 0:04:19]} Ke6 {[%emt 0:00:00]} 58. Kf3 {[%emt 0:00:20]} Nb8 {[%emt 0:00:00]} 59. Ke4 {[%emt 0:00:38]} Nd7 {[%emt 0:00:00]} 60. Kd4 {[%emt 0:00:39]} h5 {[%emt 0:00:00]} 61. b7 {[%emt 0:01:15]} g5 {[%emt 0:00:01]} 62. Nb6 {[%emt 0:00:45]} Nb8 {[%emt 0:00:26]} 63. Ke4 {[%emt 0:00:46]} Kf6 {[%emt 0:01:20]} 64. Kd5 {[%emt 0:00:29]} Kf5 {[%emt 0:00:09]} 65. Kd6 {[%emt 0:00:32]} Kg4 {[%emt 0:01:06]} 66. Nd7 {[%emt 0:00:17]} Na6 {[%emt 0:00:02]} 67. Nc5 {[%emt 0:00:29]} Nb8 {[%emt 0:00:05]} 68. Kc7 {[%emt 0:00:07]} 1-0

[Event "British Championship 2024"]
[Site "Hull"]
[Date "2024.07.31"]
[Round "1.11"]
[White "Larchikov, Maksym"]
[Black "Wadsworth, Matthew J"]
[Result "0-1"]
[Annotator "TA"]
[ECO "D19"]
[WhiteElo "2181"]
[BlackElo "2467"]
[PlyCount "58"]
[EventDate "2024.07.31"]
[EventCountry "GBR"]
[SourceTitle "playchess.com"]
[Source "ChessBase"]
[SourceQuality "1"]
[TimeControl "40/5400+30:1800+30"]

{[%evp 19,58,9,15,2,0,1,10,17,49,59,35,30,50,33,39,52,43,31,68,0,0,0,25,-102,-93,-105,-100,-108,-109,-196,-118,-450,-448,-883,-876,-893,-891,-881,-867,-823,-782]} 1. d4 {[%emt 0:00:07]} d5 {[%emt 0:00:13]} 2. c4 {[%emt 0:00:21]} c6 {[%emt 0:00:08]} 3. Nf3 {[%emt 0:00:22]} Nf6 {[%emt 0:00:10]} 4. Nc3 {[%emt 0:00:26]} dxc4 {[%emt 0:00:55]} 5. a4 {[%emt 0:00:35]} Bf5 {[%emt 0:00:35]} 6. e3 {[%emt 0:00:31]} e6 {[%emt 0:00:35]} 7. Bxc4 {[%emt 0:00:35]} Bb4 {[%emt 0:00:26]} 8. O-O {[%emt 0:00:38]} O-O {[%emt 0:00:20]} 9. Qe2 {[%emt 0:01:22]} Ne4 {[%emt 0:01:12]} 10. Nxe4 {[%emt 0:06:06]} Bxe4 {[%emt 0:00:55]} 11. Bd3 {[%emt 0:03:41]} Bxd3 {[%emt 0:14:31]} 12. Qxd3 {[%emt 0:00:08]} Nd7 {[%emt 0:01:38]} 13. Bd2 {[%emt 0:04:48] The position is equal.} a5 {[%emt 0:11:19]} 14. Bxb4 {[%emt 0:15:41]} axb4 {[%emt 0:00:06]} 15. Rfd1 {[%emt 0:06:46]} Qa5 {[%emt 0:04:11]} 16. b3 {[%emt 0:03:41]} Rfd8 {[%emt 0:01:58]} 17. Rac1 {[%emt 0:02:47]} h6 {[%emt 0:00:36]} 18. h3 {[%emt 0:02:01]} Rac8 {[%emt 0:18:36]} 19. Qb1 {[%emt 0:07:10]} ({Better is} 19. Rc4 $14) 19... Nf6 $11 {[%emt 0:06:26]} 20. Rc5 {[%emt 0:14:51]} Qa7 {[%emt 0:05:02]} 21. e4 {[%emt 0:01:55] [#]} (21. Qc2 $11 {remains equal.}) 21... Rxd4 $3 $17 {[%emt 0:03:43][%mdl 512]} 22. Rxd4 {[%emt 0:03:11]} Qxc5 {[%emt 0:00:06]} 23. Qe1 {[%emt 0:04:30][%cal Od4c4]} Qc2 {[%emt 0:01:25] Strongly threatening ...c5.} 24. Rxb4 {[%emt 0:05:40] [#]} (24. Rc4 $17 Qxb3 25. Rxb4) 24... Rd8 {[%emt 0:00:21]} (24... c5 $1 $19 {[%cal Rc5b4]} 25. Rc4 Qxb3) 25. Qe3 $2 {[%emt 0:03:04][%mdl 8192] Loses the game.} (25. Rxb7 $2 {perishes.} Rd1 26. e5 Rxe1+ $19) (25. Rd4 $17 Rxd4 26. Nxd4) 25... Rd3 $19 {[%emt 0:04:55] Black is clearly winning.} 26. Qa7 {[%emt 0:06:21]} (26. Qf4 $142 Qb1+ (26... Rxb3 27. Rxb3 Qxb3 28. a5 $17) 27. Kh2) 26... Qc1+ {[%emt 0:01:37]} 27. Kh2 {[%emt 0:00:11]} Qf4+ {[%emt 0:00:32]} 28. Kh1 {[%emt 0:00:06]} Rd1+ {[%emt 0:00:44]} 29. Ng1 {[%emt 0:00:05]} Nxe4 {[%emt 0:00:53] Weighted Error Value: White=0.92/Black=0.14 (very precise) .  Loses game:     	White=1     	---        Mistake:       	White=4     	Black=1      Inaccurate:     	---       	Black=2      OK:         	White=3     	Black=3      Best:        	White=1     	Black=2      Brilliant:      	---       	Black=1} 0-1